[Event "Titled Tuesday Blitz July 25 Early 2023"]
[White "Svane, Rasmus"]
[Black "Khodzhamkuliev, Bahadur"]
[WhiteFideId "4657101"]
[BlackFideId "24135046"]
[WhiteElo "2976"]
[BlackElo "2472"]
[Result "1-0"]
[Round "2"]
[TimeControl "180+2"]
[Date "2023.07.25"]
[WhiteClock "0:00:33"]
[BlackClock "0:00:41"]
[Board "115"]

1. Nf3 {[%clk 0:03:00]}  Nc6 {[%clk 0:02:59]} 2. d4 {[%clk 0:02:59]}  d6 {[%clk 0:03:00]} 3. d5 {[%clk 0:02:56]}  Nb8 {[%clk 0:03:00]} 4. e4 {[%clk 0:02:57]}  g6 {[%clk 0:03:00]} 5. c4 {[%clk 0:02:55]}  Bg7 {[%clk 0:03:00]} 6. h3 {[%clk 0:02:54]}  c5 {[%clk 0:03:00]} 7. Bd3 {[%clk 0:02:54]}  a6 {[%clk 0:03:01]} 8. O-O {[%clk 0:02:52]}  Nf6 {[%clk 0:03:01]} 9. Nc3 {[%clk 0:02:52]}  O-O {[%clk 0:03:02]} 10. Re1 {[%clk 0:02:46]}  Nfd7 {[%clk 0:02:57]} 11. Bf4 {[%clk 0:02:44]}  b5 {[%clk 0:02:52]} 12. cxb5 {[%clk 0:02:43]}  axb5 {[%clk 0:02:52]} 13. Bxb5 {[%clk 0:02:44]}  Qb6 {[%clk 0:02:48]} 14. e5 {[%clk 0:02:41]}  Ba6 {[%clk 0:02:45]} 15. a4 {[%clk 0:02:38]}  c4 {[%clk 0:02:26]} 16. Be3 {[%clk 0:02:30]}  Qc7 {[%clk 0:02:20]} 17. exd6 {[%clk 0:02:29]}  exd6 {[%clk 0:02:20]} 18. Bd4 {[%clk 0:02:30]}  Bxd4 {[%clk 0:02:08]} 19. Qxd4 {[%clk 0:02:28]}  Qc5 {[%clk 0:02:08]} 20. Qh4 {[%clk 0:02:06]}  Bxb5 {[%clk 0:01:55]} 21. axb5 {[%clk 0:02:04]}  Rxa1 {[%clk 0:01:55]} 22. Rxa1 {[%clk 0:02:05]}  Kg7 {[%clk 0:01:48]} 23. Re1 {[%clk 0:01:56]}  Nb6 {[%clk 0:01:45]} 24. Ng5 {[%clk 0:00:54]}  h6 {[%clk 0:01:36]} 25. Nge4 {[%clk 0:00:54]}  Qd4 {[%clk 0:01:34]} 26. Rd1 {[%clk 0:00:54]}  Qe5 {[%clk 0:01:33]} 27. f4 {[%clk 0:00:54]}  Qf5 {[%clk 0:01:20]} 28. Nxd6 {[%clk 0:00:53]}  Qc2 {[%clk 0:01:18]} 29. Qf2 {[%clk 0:00:46]}  Qxf2+ {[%clk 0:01:08]} 30. Kxf2 {[%clk 0:00:47]}  N8d7 {[%clk 0:01:08]} 31. Rd4 {[%clk 0:00:43]}  Nc5 {[%clk 0:00:42]} 32. Nxc4 {[%clk 0:00:36]}  Nxc4 {[%clk 0:00:41]} 33. Rxc4 {[%clk 0:00:36]}  Nd3+ {[%clk 0:00:41]} 34. Ke3 {[%clk 0:00:33]}  Nxb2 {[%clk 0:00:39]} 35. Rb4 {[%clk 0:00:33]}  Rc8 {[%clk 0:00:39]} 36. Rxb2 {[%clk 0:00:31]}  Rxc3+ {[%clk 0:00:40]} 37. Kd4 {[%clk 0:00:32]}  Rc8 {[%clk 0:00:40]} 38. b6 {[%clk 0:00:32]}  Kf6 {[%clk 0:00:40]} 39. b7 {[%clk 0:00:32]}  Rb8 {[%clk 0:00:40]} 40. Kc5 {[%clk 0:00:33]}  Ke7 {[%clk 0:00:41]} 41. Kc6 {[%clk 0:00:33]}  Kd8 {[%clk 0:00:41]} 42. d6 {[%clk 0:00:33]} 1-0


[Site "https://www.chess.com"]

[Event "Titled Tuesday Blitz July 25 Early 2023"]
[White "Nenezic, Marko"]
[Black "SmirnovAlexandrA"]
[WhiteFideId "912123"]
[WhiteElo "2795"]
[BlackElo "2443"]
[Result "1-0"]
[Round "2"]
[TimeControl "180+2"]
[Date "2023.07.25"]
[WhiteClock "0:02:21"]
[BlackClock "0:02:09"]
[Board "116"]

1. d4 {[%clk 0:03:00]}  Nf6 {[%clk 0:02:59]} 2. c4 {[%clk 0:03:01]}  g6 {[%clk 0:02:58]} 3. Nc3 {[%clk 0:03:02]}  Bg7 {[%clk 0:02:58]} 4. e4 {[%clk 0:03:02]}  d6 {[%clk 0:02:59]} 5. Be2 {[%clk 0:03:03]}  O-O {[%clk 0:03:00]} 6. Be3 {[%clk 0:03:03]}  c5 {[%clk 0:03:00]} 7. d5 {[%clk 0:03:03]}  a6 {[%clk 0:02:59]} 8. a4 {[%clk 0:03:03]}  e6 {[%clk 0:02:58]} 9. Nf3 {[%clk 0:03:02]}  exd5 {[%clk 0:02:58]} 10. cxd5 {[%clk 0:03:03]}  Re8 {[%clk 0:02:58]} 11. Nd2 {[%clk 0:03:03]}  Nbd7 {[%clk 0:02:54]} 12. O-O {[%clk 0:03:02]}  b6 {[%clk 0:02:52]} 13. h3 {[%clk 0:02:39]}  Bb7 {[%clk 0:02:52]} 14. Bf4 {[%clk 0:02:38]}  Ne5 {[%clk 0:02:51]} 15. Bh2 {[%clk 0:02:39]}  Rc8 {[%clk 0:02:40]} 16. Re1 {[%clk 0:02:36]}  c4 {[%clk 0:02:38]} 17. Bxe5 {[%clk 0:02:35]}  Rxe5 {[%clk 0:02:37]} 18. Nxc4 {[%clk 0:02:36]}  Re8 {[%clk 0:02:37]} 19. Bd3 {[%clk 0:02:33]}  Rc5 {[%clk 0:02:27]} 20. Qb3 {[%clk 0:02:30]}  b5 {[%clk 0:02:08]} 21. axb5 {[%clk 0:02:27]}  axb5 {[%clk 0:02:09]} 22. Nxb5 {[%clk 0:02:22]}  Qb6 {[%clk 0:02:09]} 23. Nxb6 {[%clk 0:02:21]} 1-0


[Site "https://www.chess.com"]

[Event "Titled Tuesday Blitz July 25 Early 2023"]
[White "Wagner, Dennis"]
[Black "Tomaszewski, Kacper"]
[WhiteFideId "24650684"]
[BlackFideId "1127373"]
[WhiteElo "2770"]
[BlackElo "2435"]
[Result "0-1"]
[Round "2"]
[TimeControl "180+2"]
[Date "2023.07.25"]
[WhiteClock "0:00:07"]
[BlackClock "0:00:06"]
[Board "118"]

1. d4 {[%clk 0:03:00]}  d6 {[%clk 0:02:56]} 2. Nf3 {[%clk 0:03:00]}  Nf6 {[%clk 0:02:54]} 3. c4 {[%clk 0:03:01]}  g6 {[%clk 0:02:54]} 4. Nc3 {[%clk 0:03:02]}  Bg7 {[%clk 0:02:53]} 5. e4 {[%clk 0:03:02]}  Bg4 {[%clk 0:02:53]} 6. Be2 {[%clk 0:03:02]}  Bxf3 {[%clk 0:02:53]} 7. Bxf3 {[%clk 0:03:02]}  e5 {[%clk 0:02:54]} 8. d5 {[%clk 0:02:57]}  Nbd7 {[%clk 0:02:53]} 9. Be3 {[%clk 0:02:57]}  h5 {[%clk 0:02:53]} 10. Qc2 {[%clk 0:02:35]}  Bh6 {[%clk 0:02:52]} 11. Bxh6 {[%clk 0:02:35]}  Rxh6 {[%clk 0:02:52]} 12. h4 {[%clk 0:02:32]}  Kf8 {[%clk 0:02:51]} 13. O-O-O {[%clk 0:02:31]}  a6 {[%clk 0:02:47]} 14. Be2 {[%clk 0:02:28]}  Nc5 {[%clk 0:02:43]} 15. Kb1 {[%clk 0:02:27]}  Rb8 {[%clk 0:02:38]} 16. f3 {[%clk 0:02:18]}  Qe8 {[%clk 0:02:35]} 17. b4 {[%clk 0:02:09]}  Ncd7 {[%clk 0:02:29]} 18. Rc1 {[%clk 0:02:05]}  Rh8 {[%clk 0:02:28]} 19. Ka1 {[%clk 0:02:03]}  Kg7 {[%clk 0:02:28]} 20. Qd2 {[%clk 0:01:58]}  a5 {[%clk 0:02:20]} 21. bxa5 {[%clk 0:01:16]}  Nc5 {[%clk 0:02:14]} 22. Nb5 {[%clk 0:01:15]}  Qd7 {[%clk 0:02:11]} 23. Rb1 {[%clk 0:01:14]}  Ra8 {[%clk 0:02:10]} 24. Rb2 {[%clk 0:01:13]}  Ra6 {[%clk 0:02:09]} 25. Qg5 {[%clk 0:00:28]}  Rxa5 {[%clk 0:01:58]} 26. Kb1 {[%clk 0:00:20]}  Na4 {[%clk 0:01:54]} 27. Rb3 {[%clk 0:00:20]}  Nc5 {[%clk 0:01:49]} 28. Rb2 {[%clk 0:00:20]}  c6 {[%clk 0:01:15]} 29. Nc3 {[%clk 0:00:20]}  Ra3 {[%clk 0:01:13]} 30. Rc1 {[%clk 0:00:20]}  Rha8 {[%clk 0:00:53]} 31. Qd2 {[%clk 0:00:19]}  Qd8 {[%clk 0:00:37]} 32. Bd1 {[%clk 0:00:16]}  Qa5 {[%clk 0:00:36]} 33. Ne2 {[%clk 0:00:15]}  Nd3 {[%clk 0:00:27]} 34. Qxa5 {[%clk 0:00:14]}  R8xa5 {[%clk 0:00:28]} 35. Rxb7 {[%clk 0:00:13]}  Rxa2 {[%clk 0:00:26]} 36. Rc3 {[%clk 0:00:08]}  Ra1+ {[%clk 0:00:25]} 37. Kc2 {[%clk 0:00:09]}  Nf2 {[%clk 0:00:14]} 38. Kd2 {[%clk 0:00:05]}  Rxd1+ {[%clk 0:00:10]} 39. Ke3 {[%clk 0:00:05]}  N6g4+ {[%clk 0:00:07]} 40. fxg4 {[%clk 0:00:05]}  Nxg4+ {[%clk 0:00:07]} 41. Kf3 {[%clk 0:00:06]}  cxd5 {[%clk 0:00:05]} 42. cxd5 {[%clk 0:00:06]}  Rf1+ {[%clk 0:00:04]} 43. Kg3 {[%clk 0:00:06]}  Ra2 {[%clk 0:00:04]} 44. Rf3 {[%clk 0:00:02]}  Rxf3+ {[%clk 0:00:02]} 45. gxf3 {[%clk 0:00:03]}  Rxe2 {[%clk 0:00:02]} 46. fxg4 {[%clk 0:00:03]}  hxg4 {[%clk 0:00:02]} 47. Rb4 {[%clk 0:00:04]}  Re1 {[%clk 0:00:01]} 48. Kxg4 {[%clk 0:00:04]}  Rg1+ {[%clk 0:00:02]} 49. Kf3 {[%clk 0:00:04]}  Rf1+ {[%clk 0:00:02]} 50. Kg3 {[%clk 0:00:04]}  Rf4 {[%clk 0:00:03]} 51. Ra4 {[%clk 0:00:04]}  Kh6 {[%clk 0:00:03]} 52. Ra6 {[%clk 0:00:03]}  Rf6 {[%clk 0:00:03]} 53. Ra7 {[%clk 0:00:03]}  Kg7 {[%clk 0:00:03]} 54. Rd7 {[%clk 0:00:03]}  Kf8 {[%clk 0:00:03]} 55. Kh3 {[%clk 0:00:04]}  Ke8 {[%clk 0:00:04]} 56. Ra7 {[%clk 0:00:04]}  Kf8 {[%clk 0:00:04]} 57. Rd7 {[%clk 0:00:04]}  Kg7 {[%clk 0:00:04]} 58. Rd8 {[%clk 0:00:04]}  Rf4 {[%clk 0:00:04]} 59. Rxd6 {[%clk 0:00:04]}  Rxe4 {[%clk 0:00:04]} 60. Rd8 {[%clk 0:00:03]}  Rd4 {[%clk 0:00:05]} 61. d6 {[%clk 0:00:04]}  Kf6 {[%clk 0:00:05]} 62. Kg3 {[%clk 0:00:04]}  Ke6 {[%clk 0:00:05]} 63. Re8+ {[%clk 0:00:03]}  Kxd6 {[%clk 0:00:05]} 64. Rf8 {[%clk 0:00:02]}  Ke7 {[%clk 0:00:05]} 65. Rb8 {[%clk 0:00:03]}  Kf6 {[%clk 0:00:06]} 66. Rb6+ {[%clk 0:00:03]}  Kf5 {[%clk 0:00:06]} 67. Rb5 {[%clk 0:00:04]}  Rd3+ {[%clk 0:00:06]} 68. Kf2 {[%clk 0:00:04]}  Rc3 {[%clk 0:00:07]} 69. Ke2 {[%clk 0:00:04]}  Rh3 {[%clk 0:00:06]} 70. Rb7 {[%clk 0:00:04]}  f6 {[%clk 0:00:06]} 71. Rb4 {[%clk 0:00:04]}  e4 {[%clk 0:00:06]} 72. Rb5+ {[%clk 0:00:04]}  Kf4 {[%clk 0:00:06]} 73. Rb6 {[%clk 0:00:05]}  f5 {[%clk 0:00:07]} 74. Rxg6 {[%clk 0:00:05]}  Rxh4 {[%clk 0:00:07]} 75. Rg2 {[%clk 0:00:05]}  Rh3 {[%clk 0:00:07]} 76. Rf2+ {[%clk 0:00:05]}  Ke5 {[%clk 0:00:07]} 77. Rg2 {[%clk 0:00:05]}  Ra3 {[%clk 0:00:07]} 78. Rg8 {[%clk 0:00:06]}  Ra2+ {[%clk 0:00:08]} 79. Ke1 {[%clk 0:00:06]}  Kf4 {[%clk 0:00:08]} 80. Rb8 {[%clk 0:00:06]}  Kf3 {[%clk 0:00:07]} 81. Rb3+ {[%clk 0:00:06]}  e3 {[%clk 0:00:07]} 82. Rb5 {[%clk 0:00:07]}  Ra1+ {[%clk 0:00:05]} 83. Rb1 {[%clk 0:00:07]}  Rxb1# {[%clk 0:00:06]} 0-1


[Site "https://www.chess.com"]

[Event "Titled Tuesday Blitz July 25 Early 2023"]
[White "Atakhan, Abtin"]
[Black "Baches Garcia, Guillermo"]
[WhiteFideId "22502203"]
[BlackFideId "2209764"]
[WhiteElo "2766"]
[BlackElo "2425"]
[Result "1-0"]
[Round "2"]
[TimeControl "180+2"]
[Date "2023.07.25"]
[WhiteClock "0:02:24"]
[BlackClock "0:00:38"]
[Board "119"]

1. d4 {[%clk 0:03:00]}  Nf6 {[%clk 0:02:59]} 2. c4 {[%clk 0:03:00]}  e6 {[%clk 0:03:00]} 3. f3 {[%clk 0:03:01]}  d5 {[%clk 0:03:00]} 4. cxd5 {[%clk 0:02:55]}  exd5 {[%clk 0:02:59]} 5. Nc3 {[%clk 0:02:55]}  c5 {[%clk 0:02:57]} 6. e3 {[%clk 0:02:51]}  Nc6 {[%clk 0:02:55]} 7. Bb5 {[%clk 0:02:50]}  a6 {[%clk 0:02:48]} 8. Bxc6+ {[%clk 0:02:50]}  bxc6 {[%clk 0:02:48]} 9. Nge2 {[%clk 0:02:51]}  c4 {[%clk 0:02:42]} 10. b3 {[%clk 0:02:50]}  cxb3 {[%clk 0:02:38]} 11. axb3 {[%clk 0:02:51]}  Bd6 {[%clk 0:02:34]} 12. Ba3 {[%clk 0:02:51]}  O-O {[%clk 0:02:32]} 13. Bxd6 {[%clk 0:02:51]}  Qxd6 {[%clk 0:02:33]} 14. Na4 {[%clk 0:02:45]}  Re8 {[%clk 0:02:30]} 15. Qd2 {[%clk 0:02:44]}  Rb8 {[%clk 0:02:28]} 16. Nc5 {[%clk 0:02:44]}  Nd7 {[%clk 0:02:27]} 17. b4 {[%clk 0:02:38]}  Nxc5 {[%clk 0:02:18]} 18. dxc5 {[%clk 0:02:38]}  Qe5 {[%clk 0:02:04]} 19. Ra3 {[%clk 0:02:38]}  a5 {[%clk 0:02:02]} 20. Rxa5 {[%clk 0:02:33]}  Qxe3 {[%clk 0:01:54]} 21. Qxe3 {[%clk 0:02:34]}  Rxe3 {[%clk 0:01:54]} 22. Kd2 {[%clk 0:02:35]}  Rb3 {[%clk 0:01:49]} 23. Nd4 {[%clk 0:02:32]}  R3xb4 {[%clk 0:01:37]} 24. Nxc6 {[%clk 0:02:33]}  Rb2+ {[%clk 0:01:37]} 25. Ke3 {[%clk 0:02:33]}  R8b3+ {[%clk 0:01:31]} 26. Kf4 {[%clk 0:02:33]}  g5+ {[%clk 0:01:31]} 27. Ke5 {[%clk 0:02:26]}  Re2+ {[%clk 0:01:09]} 28. Kd6 {[%clk 0:02:26]}  Bb7 {[%clk 0:00:38]} 29. Nd4 {[%clk 0:02:24]} 1-0


[Site "https://www.chess.com"]

[Event "Titled Tuesday Blitz July 25 Early 2023"]
[White "Cheer_Down"]
[Black "Mahdavi, Reza"]
[BlackFideId "12595926"]
[WhiteElo "2416"]
[BlackElo "2744"]
[Result "0-1"]
[Round "2"]
[TimeControl "180+2"]
[Date "2023.07.25"]
[WhiteClock "0:00:28"]
[BlackClock "0:01:14"]
[Board "121"]

1. e4 {[%clk 0:03:00]}  c5 {[%clk 0:02:56]} 2. Nf3 {[%clk 0:03:00]}  d6 {[%clk 0:02:56]} 3. d4 {[%clk 0:03:00]}  cxd4 {[%clk 0:02:56]} 4. Nxd4 {[%clk 0:03:01]}  Nf6 {[%clk 0:02:57]} 5. Nc3 {[%clk 0:03:01]}  a6 {[%clk 0:02:57]} 6. f3 {[%clk 0:03:01]}  e5 {[%clk 0:02:55]} 7. Nb3 {[%clk 0:03:00]}  Be6 {[%clk 0:02:56]} 8. Be3 {[%clk 0:03:00]}  Nbd7 {[%clk 0:02:54]} 9. Nd5 {[%clk 0:02:58]}  Bxd5 {[%clk 0:02:36]} 10. exd5 {[%clk 0:02:58]}  b5 {[%clk 0:02:37]} 11. Qd2 {[%clk 0:02:50]}  Nb6 {[%clk 0:02:37]} 12. Bxb6 {[%clk 0:02:35]}  Qxb6 {[%clk 0:02:38]} 13. c4 {[%clk 0:02:35]}  bxc4 {[%clk 0:02:35]} 14. Bxc4 {[%clk 0:02:35]}  Kd7 {[%clk 0:02:36]} 15. Qa5 {[%clk 0:02:31]}  Qxa5+ {[%clk 0:02:34]} 16. Nxa5 {[%clk 0:02:30]}  Be7 {[%clk 0:02:35]} 17. Nc6 {[%clk 0:02:19]}  Bd8 {[%clk 0:02:34]} 18. b4 {[%clk 0:02:12]}  Bb6 {[%clk 0:02:30]} 19. a4 {[%clk 0:02:11]}  Rhc8 {[%clk 0:02:26]} 20. a5 {[%clk 0:02:09]}  Ba7 {[%clk 0:02:24]} 21. Ke2 {[%clk 0:02:07]}  Bd4 {[%clk 0:02:13]} 22. Rad1 {[%clk 0:02:03]}  Ng8 {[%clk 0:02:14]} 23. Kd3 {[%clk 0:01:56]}  Bf2 {[%clk 0:02:10]} 24. Bb3 {[%clk 0:01:54]}  Ne7 {[%clk 0:02:09]} 25. Ke2 {[%clk 0:01:46]}  Ba7 {[%clk 0:02:01]} 26. Ba4 {[%clk 0:01:45]}  Nxc6 {[%clk 0:02:01]} 27. Bxc6+ {[%clk 0:01:44]}  Rxc6 {[%clk 0:02:01]} 28. dxc6+ {[%clk 0:01:43]}  Kxc6 {[%clk 0:02:02]} 29. Rc1+ {[%clk 0:01:38]}  Kd7 {[%clk 0:02:01]} 30. Rhd1 {[%clk 0:01:39]}  Rb8 {[%clk 0:02:01]} 31. Rc4 {[%clk 0:01:39]}  Bd4 {[%clk 0:02:00]} 32. Rdc1 {[%clk 0:01:09]}  Ke6 {[%clk 0:01:58]} 33. g4 {[%clk 0:01:03]}  Kd5 {[%clk 0:01:56]} 34. Kd3 {[%clk 0:01:02]}  f6 {[%clk 0:01:53]} 35. Rxd4+ {[%clk 0:01:01]}  exd4 {[%clk 0:01:53]} 36. Rc4 {[%clk 0:01:02]}  Ke5 {[%clk 0:01:49]} 37. Rxd4 {[%clk 0:00:58]}  d5 {[%clk 0:01:50]} 38. f4+ {[%clk 0:00:56]}  Kd6 {[%clk 0:01:50]} 39. Kc3 {[%clk 0:00:53]}  Rc8+ {[%clk 0:01:47]} 40. Kb2 {[%clk 0:00:50]}  Re8 {[%clk 0:01:46]} 41. Kc3 {[%clk 0:00:44]}  Kc6 {[%clk 0:01:40]} 42. Kd2 {[%clk 0:00:35]}  Re4 {[%clk 0:01:14]} 43. Kd3 {[%clk 0:00:34]}  Rxd4+ {[%clk 0:01:14]} 44. Kxd4 {[%clk 0:00:34]}  Kb5 {[%clk 0:01:15]} 45. Kxd5 {[%clk 0:00:34]}  Kxb4 {[%clk 0:01:16]} 46. f5 {[%clk 0:00:32]}  Kxa5 {[%clk 0:01:16]} 47. Kc5 {[%clk 0:00:32]}  Ka4 {[%clk 0:01:13]} 48. Kc4 {[%clk 0:00:33]}  a5 {[%clk 0:01:13]} 49. h4 {[%clk 0:00:29]}  h6 {[%clk 0:01:13]} 50. h5 {[%clk 0:00:28]}  Ka3 {[%clk 0:01:14]} 51. Kc3 {[%clk 0:00:28]}  a4 {[%clk 0:01:14]} 0-1


[Site "https://www.chess.com"]

[Event "Titled Tuesday Blitz July 25 Early 2023"]
[White "Volovich, Vasily"]
[Black "Molina Carretero, Daniel"]
[WhiteFideId "34169676"]
[BlackFideId "32071914"]
[WhiteElo "2735"]
[BlackElo "2398"]
[Result "0-1"]
[Round "2"]
[TimeControl "180+2"]
[Date "2023.07.25"]
[WhiteClock "0:00:07"]
[BlackClock "0:00:18"]
[Board "122"]

1. e4 {[%clk 0:02:56]}  c5 {[%clk 0:03:00]} 2. Nf3 {[%clk 0:02:55]}  d6 {[%clk 0:03:00]} 3. c3 {[%clk 0:02:55]}  Nf6 {[%clk 0:03:00]} 4. h3 {[%clk 0:02:55]}  g6 {[%clk 0:03:00]} 5. Bd3 {[%clk 0:02:55]}  Bg7 {[%clk 0:03:00]} 6. O-O {[%clk 0:02:55]}  O-O {[%clk 0:03:00]} 7. Bc2 {[%clk 0:02:55]}  e5 {[%clk 0:02:59]} 8. d4 {[%clk 0:02:55]}  Nc6 {[%clk 0:02:59]} 9. dxe5 {[%clk 0:02:54]}  dxe5 {[%clk 0:02:58]} 10. Bg5 {[%clk 0:02:53]}  h6 {[%clk 0:02:56]} 11. Bxf6 {[%clk 0:02:53]}  Qxf6 {[%clk 0:02:57]} 12. Nbd2 {[%clk 0:02:50]}  Rd8 {[%clk 0:02:56]} 13. Qe2 {[%clk 0:02:49]}  Be6 {[%clk 0:02:51]} 14. Bb3 {[%clk 0:02:49]}  Rd7 {[%clk 0:02:39]} 15. Bxe6 {[%clk 0:02:47]}  Qxe6 {[%clk 0:02:39]} 16. Nc4 {[%clk 0:02:46]}  Rad8 {[%clk 0:02:36]} 17. Ne3 {[%clk 0:02:46]}  f5 {[%clk 0:02:15]} 18. Rfd1 {[%clk 0:02:23]}  a6 {[%clk 0:01:52]} 19. b3 {[%clk 0:02:08]}  fxe4 {[%clk 0:01:44]} 20. Nd2 {[%clk 0:02:07]}  Nd4 {[%clk 0:01:44]} 21. cxd4 {[%clk 0:02:04]}  exd4 {[%clk 0:01:45]} 22. Qc4 {[%clk 0:01:53]}  Qxc4 {[%clk 0:01:41]} 23. Nexc4 {[%clk 0:01:53]}  b5 {[%clk 0:01:37]} 24. Na3 {[%clk 0:01:38]}  e3 {[%clk 0:01:28]} 25. Nf3 {[%clk 0:01:27]}  e2 {[%clk 0:01:19]} 26. Rd2 {[%clk 0:01:26]}  d3 {[%clk 0:01:19]} 27. Rc1 {[%clk 0:01:26]}  Bb2 {[%clk 0:00:58]} 28. Rxb2 {[%clk 0:01:05]}  d2 {[%clk 0:00:58]} 29. Rxd2 {[%clk 0:00:46]}  Rxd2 {[%clk 0:00:59]} 30. Re1 {[%clk 0:00:45]}  Rxa2 {[%clk 0:00:54]} 31. Nb1 {[%clk 0:00:44]}  Rd1 {[%clk 0:00:52]} 32. Nc3 {[%clk 0:00:35]}  Rxe1+ {[%clk 0:00:52]} 33. Nxe1 {[%clk 0:00:35]}  Ra1 {[%clk 0:00:52]} 34. f3 {[%clk 0:00:28]}  Rxe1+ {[%clk 0:00:50]} 35. Kf2 {[%clk 0:00:28]}  Rc1 {[%clk 0:00:44]} 36. Nxe2 {[%clk 0:00:28]}  Rc2 {[%clk 0:00:43]} 37. Ke3 {[%clk 0:00:28]}  Rxe2+ {[%clk 0:00:39]} 38. Kxe2 {[%clk 0:00:28]}  a5 {[%clk 0:00:39]} 39. Kd3 {[%clk 0:00:28]}  a4 {[%clk 0:00:38]} 40. bxa4 {[%clk 0:00:28]}  bxa4 {[%clk 0:00:39]} 41. Kc4 {[%clk 0:00:29]}  Kf7 {[%clk 0:00:39]} 42. f4 {[%clk 0:00:29]}  Kf6 {[%clk 0:00:20]} 43. g4 {[%clk 0:00:29]}  Ke6 {[%clk 0:00:18]} 44. h4 {[%clk 0:00:23]}  Kf6 {[%clk 0:00:17]} 45. Kc3 {[%clk 0:00:17]}  h5 {[%clk 0:00:17]} 46. gxh5 {[%clk 0:00:06]}  gxh5 {[%clk 0:00:18]} 47. Kc4 {[%clk 0:00:07]}  Kf5 {[%clk 0:00:18]} 48. Kxc5 {[%clk 0:00:07]}  a3 {[%clk 0:00:18]} 0-1


[Site "https://www.chess.com"]

[Event "Titled Tuesday Blitz July 25 Early 2023"]
[White "Timerkhanov, Alexander"]
[Black "Yolosz"]
[WhiteFideId "24177938"]
[WhiteElo "2679"]
[BlackElo "2372"]
[Result "1-0"]
[Round "2"]
[TimeControl "180+2"]
[Date "2023.07.25"]
[WhiteClock "0:02:12"]
[BlackClock "0:00:26"]
[Board "125"]

1. d4 {[%clk 0:02:54]}  d5 {[%clk 0:02:59]} 2. Bf4 {[%clk 0:02:53]}  Bf5 {[%clk 0:02:48]} 3. c4 {[%clk 0:02:52]}  e6 {[%clk 0:02:44]} 4. Nc3 {[%clk 0:02:53]}  c6 {[%clk 0:02:43]} 5. e3 {[%clk 0:02:51]}  Nd7 {[%clk 0:02:43]} 6. Qb3 {[%clk 0:02:51]}  Qb6 {[%clk 0:02:42]} 7. c5 {[%clk 0:02:51]}  Qxb3 {[%clk 0:02:29]} 8. axb3 {[%clk 0:02:52]}  f6 {[%clk 0:02:22]} 9. b4 {[%clk 0:02:51]}  e5 {[%clk 0:02:22]} 10. Bg3 {[%clk 0:02:51]}  Ne7 {[%clk 0:01:58]} 11. b5 {[%clk 0:02:46]}  Be6 {[%clk 0:01:43]} 12. Nf3 {[%clk 0:02:40]}  e4 {[%clk 0:01:40]} 13. Nd2 {[%clk 0:02:39]}  h5 {[%clk 0:01:37]} 14. h3 {[%clk 0:02:37]}  h4 {[%clk 0:01:34]} 15. Bh2 {[%clk 0:02:37]}  Kf7 {[%clk 0:01:29]} 16. Nb3 {[%clk 0:02:36]}  g6 {[%clk 0:01:26]} 17. Na5 {[%clk 0:02:32]}  Bh6 {[%clk 0:00:47]} 18. Nxb7 {[%clk 0:02:30]}  f5 {[%clk 0:00:44]} 19. Na5 {[%clk 0:02:24]}  Rhc8 {[%clk 0:00:39]} 20. bxc6 {[%clk 0:02:22]}  Nxc6 {[%clk 0:00:39]} 21. Nxc6 {[%clk 0:02:20]}  Rxc6 {[%clk 0:00:40]} 22. b4 {[%clk 0:02:21]}  Rcc8 {[%clk 0:00:35]} 23. Ba6 {[%clk 0:02:18]}  Re8 {[%clk 0:00:31]} 24. Nb5 {[%clk 0:02:16]}  Kg7 {[%clk 0:00:27]} 25. Nc7 {[%clk 0:02:15]}  f4 {[%clk 0:00:26]} 26. Bxf4 {[%clk 0:02:11]}  Bxf4 {[%clk 0:00:26]} 27. exf4 {[%clk 0:02:12]} 1-0


[Site "https://www.chess.com"]

[Event "Titled Tuesday Blitz July 25 Early 2023"]
[White "Nagare Kaivalya Sandip"]
[Black "Ncatt"]
[WhiteFideId "25957929"]
[WhiteElo "2661"]
[BlackElo "2342"]
[Result "1-0"]
[Round "2"]
[TimeControl "180+2"]
[Date "2023.07.25"]
[WhiteClock "0:01:41"]
[BlackClock "0:00:35"]
[Board "126"]

1. e4 {[%clk 0:03:00]}  c5 {[%clk 0:02:56]} 2. Nf3 {[%clk 0:03:00]}  Nc6 {[%clk 0:02:57]} 3. d4 {[%clk 0:03:01]}  cxd4 {[%clk 0:02:56]} 4. Nxd4 {[%clk 0:03:01]}  Nf6 {[%clk 0:02:56]} 5. Nc3 {[%clk 0:03:02]}  e6 {[%clk 0:02:57]} 6. Ndb5 {[%clk 0:03:02]}  Bc5 {[%clk 0:02:56]} 7. Nd6+ {[%clk 0:02:55]}  Ke7 {[%clk 0:02:55]} 8. Nc4 {[%clk 0:02:55]}  e5 {[%clk 0:02:46]} 9. Bg5 {[%clk 0:02:54]}  Bb4 {[%clk 0:02:42]} 10. a3 {[%clk 0:02:48]}  Bxc3+ {[%clk 0:02:42]} 11. bxc3 {[%clk 0:02:49]}  Qc7 {[%clk 0:02:32]} 12. Ne3 {[%clk 0:02:47]}  Kf8 {[%clk 0:02:19]} 13. Bxf6 {[%clk 0:02:46]}  gxf6 {[%clk 0:02:19]} 14. Nd5 {[%clk 0:02:47]}  Qd6 {[%clk 0:02:13]} 15. Qf3 {[%clk 0:02:44]}  Rg8 {[%clk 0:01:55]} 16. Qxf6 {[%clk 0:02:41]}  Qxf6 {[%clk 0:01:53]} 17. Nxf6 {[%clk 0:02:42]}  Rg6 {[%clk 0:01:53]} 18. Nd5 {[%clk 0:02:42]}  d6 {[%clk 0:01:52]} 19. O-O-O {[%clk 0:02:40]}  Be6 {[%clk 0:01:47]} 20. f3 {[%clk 0:02:39]}  Rc8 {[%clk 0:01:46]} 21. g4 {[%clk 0:02:38]}  a6 {[%clk 0:01:41]} 22. Nb6 {[%clk 0:02:36]}  Rd8 {[%clk 0:01:40]} 23. Bc4 {[%clk 0:02:33]}  Ne7 {[%clk 0:01:34]} 24. Rd2 {[%clk 0:02:26]}  Rf6 {[%clk 0:01:32]} 25. Rd3 {[%clk 0:02:22]}  Ng6 {[%clk 0:01:30]} 26. Rhd1 {[%clk 0:02:15]}  Ke7 {[%clk 0:01:26]} 27. Bxe6 {[%clk 0:02:04]}  fxe6 {[%clk 0:01:16]} 28. Rxd6 {[%clk 0:02:03]}  Rxd6 {[%clk 0:01:12]} 29. Nc8+ {[%clk 0:02:02]}  Kd7 {[%clk 0:01:08]} 30. Nxd6 {[%clk 0:02:02]}  Rxf3 {[%clk 0:01:08]} 31. Nxb7+ {[%clk 0:01:54]}  Kc6 {[%clk 0:01:08]} 32. Nd8+ {[%clk 0:01:53]}  Kc5 {[%clk 0:01:07]} 33. Nxe6+ {[%clk 0:01:53]}  Kc4 {[%clk 0:01:08]} 34. Rd6 {[%clk 0:01:46]}  Nh4 {[%clk 0:00:48]} 35. Rd5 {[%clk 0:01:43]}  Rf1+ {[%clk 0:00:35]} 36. Kb2 {[%clk 0:01:41]} 1-0


[Site "https://www.chess.com"]